Cogmind - Beta 9.2 @@@ ROGUE MODE // 2019.11.27 @ 09:55:13 Player: Dhoby_Ghaut Result: Destroyed by G-34 Mercenary with Small Laser Performance ------------- Evolutions (1) 500 Regions Visited (2) 400 Robots Destroyed (27) 135 Value Destroyed (445) 445 Prototype IDs (0) 0 Alien Tech Used (0) 0 Bonus (0) 0 TOTAL SCORE: 1480 Bonus ------- None Cogmind --------- Core Integrity 0/400 Matter 202/300 Energy 100/100 System Corruption 0% Temperature Cool (6) Movement Core (900) Ox17 Location -9/Materials Parts ------- > --- POWER (1) -------- (None) > --- PROPULSION (2) --- (None) > --- UTILITY (3) ------ Disposable Heat Sink Large Storage Unit High-capacity Storage Unit > --- WEAPON (3) ------- Assault Rifle Light Assault Rifle Mini Grenade Launcher > --- INVENTORY (18) --- Light Ion Engine High-capacity Storage Unit Improved Sensor Array Improved Sensor Array Particle Gun Mini Grenade Launcher Maul Peak State ------------ > --- POWER ------------ Ion Engine > --- PROPULSION ------- Aluminum Leg Aluminum Leg > --- UTILITY ---------- Disposable Heat Sink Large Storage Unit High-capacity Storage Unit > --- WEAPON ----------- Particle Gun Particle Gun Particle Gun > --- INVENTORY -------- Light Ion Engine Wheel Wheel Improved Sensor Array Improved Sensor Array Particle Gun Assault Rifle Heavy Assault Rifle Heavy Assault Rifle Mini Grenade Launcher Mini Grenade Launcher Maul [Rating: 15] Favorites ----------- Power Ion Engine Engine Ion Engine Propulsion Aluminum Leg Leg Aluminum Leg Wheel Wheel Utility High-capacity Storage Unit Device Disposable Heat Sink Storage High-capacity Storage Unit Weapon Particle Gun Energy Gun Particle Gun Ballistic Gun Heavy Assault Rifle Launcher Mini Grenade Launcher Build | -11 -10 -9 ------- Run | Scr Mat Mat Slots Evolved 2 | . . 2 Power . | . . . Propulsion . | . . . Utility 1 | . . 1 Weapon 1 | . . 1 Parts Attached 32 | 6 6 20 Power 3 | 1 . 2 Engine 3 | 1 . 2 Core . | . . . Reactor . | . . . Propulsion 4 | 2 . 2 Treads . | . . . Leg 2 | 2 . . Wheel 2 | . . 2 Hover . | . . . Flight . | . . . Utility 5 | 1 2 2 Device 1 | . . 1 Storage 4 | 1 2 1 Processor . | . . . Hackware . | . . . Protection . | . . . Artifact . | . . . Weapon 20 | 2 4 14 Energy Gun 10 | 2 2 6 Energy Cannon . | . . . Ballistic Gun 8 | . 2 6 Ballistic Cannon . | . . . Launcher 2 | . . 2 Special Weapon . | . . . Impact Weapon . | . . . Slashing Weapon . | . . . Piercing Weapon . | . . . Special Melee Weapon . | . . . Unidentified Prototypes . | . . . Parts Lost 14 | . . 14 Power 2 | . . 2 Propulsion 4 | . . 4 Utility . | . . . Weapon 8 | . . 8 Highest Loss Streak 7 | . . 7 Average Slot Usage (%) 93 | . 99 89 Engine 11 | . 14 9 Leg 16 | . 28 8 Wheel 4 | . . 8 Device 6 | . . 11 Storage 24 | . 27 22 Energy Gun 16 | . 15 16 Ballistic Gun 12 | . 12 13 Naked Turns . | . . . Heaviest Build 63 | 11 58 63 Greatest Support 20 | 20 20 20 Greatest Overweight (x) 19 | . 2 19 Average Overweight (x) 2 | . 1 3 Largest Inventory Capacity 18 | 6 18 18 Average Capacity 15 | 5 13 18 Most Carried 14 | 6 14 13 Average Carried 10 | 3 11 10 Final Capacity 18 | 6 18 18 Final Carried 14 | 6 14 7 Class Distribution -------------------- 54% | Mutant 45% | Gunner Dominant Class ---------------- Mutant | -10/Materials Gunner | -9/Materials Resources | -11 -10 -9 ----------- Run | Scr Mat Mat Matter Collected 655 | 168 50 437 Remotely . | . . . Salvage Created 497 | . 60 437 Parts 38 | . 5 33 Haulers Intercepted . | . . . Recyclers Shooed 1 | . . 1 Parts Field Recycled . | . . . Retrieved Matter . | . . . Parts Self-Destructed . | . . . Prevented . | . . . Kills | -11 -10 -9 ------- Run | Scr Mat Mat Combat Hostiles Destroyed 23 | . 5 18 Guns 18 | . 5 13 AOE 5 | . . 5 Classes Destroyed 7 | . 1 6 Worker 1 | . . 1 Builder 1 | . . 1 Recycler 1 | . . 1 Operator 1 | . . 1 Swarmer 17 | . 5 12 Grunt 3 | . . 3 Sentry 3 | . . 3 Best Kill Streak 6 | . 3 6 Combat Bots Only 5 | . 3 5 Max Kills in Single Turn 2 | . 2 2 Gunslinging 1 | . 1 1 Exploded 2 | . . 2 Melee . | . . . Uniques/NPCs Destroyed . | . . . Combat | -11 -10 -9 -------- Run | Scr Mat Mat Damage Taken 1740 | . 256 1484 Core 433 | . 33 400 Absorbed by Shields . | . . . Core Remaining (%) 93 | 100 86 . Volleys Fired 70 | . 19 51 Largest 3 | . 2 3 Hottest 195 | . 130 195 Shots Fired 168 | . 38 130 Gun 161 | . 38 123 Cannon . | . . . Launcher 7 | . . 7 Special . | . . . Kinetic 95 | . 18 77 Thermal 66 | . 20 46 Explosive 7 | . . 7 Electromagnetic . | . . . Robot Hit Streak 13 | . 4 13 Robot Miss Streak 6 | . 5 6 Penetration Max . | . . . Secondary Targets 7 | . 1 6 Max Gunslinging Chain 1 | . 1 1 Shots Hit Robots 90 | . 17 73 Core Hits 39 | . 5 34 Critical Hits 1 | . . 1 Critical Kills . | . . . Critical Parts Destroyed 1 | . . 1 Melee Attacks . | . . . Impact . | . . . Slashing . | . . . Piercing . | . . . Sneak Attacks . | . . . Combat Hostiles . | . . . Follow-up Attacks . | . . . Damage Inflicted 1516 | . 187 1329 Guns 1006 | . 187 819 Cannons . | . . . Explosions 510 | . . 510 Melee . | . . . Ramming . | . . . Kinetic 517 | . 105 412 Thermal 489 | . 82 407 Explosive 510 | . . 510 Electromagnetic . | . . . Impact . | . . . Slashing . | . . . Piercing . | . . . Highest Corruption . | . . . Average Corruption . | . . . Corruption Purged . | . . . Overload Shots . | . . . Overflow Damage 35 | . . 35 Projectiles . | . . . Explosions 35 | . . 35 Melee . | . . . Knockbacks . | . . . Impact . | . . . Kinetic . | . . . Secondary . | . . . Self-Inflicted Damage 70 | . . 70 Shots 3 | . . 3 Rammed . | . . . Targets Rammed . | . . . Kicked . | . . . Crushed . | . . . Highest Temperature 221 | . 221 199 Average Temperature 105 | . 99 107 Received Heat Transfer 288 | . 18 270 Siege Activations . | . . . Robots Corrupted . | . . . Combat Hostiles . | . . . Parts Fried . | . . . Impact Corruptions . | . . . Robots Melted . | . . . Combat Hostiles . | . . . Parts Melted 3 | . 1 2 Heat Transferred 1186 | . 187 999 Parts Sabotaged . | . . . Parts Stolen . | . . . Parts Stripped . | . . . Power Chain Reactions . | . . . Missiles Intercepted . | . . . Alert | -11 -10 -9 ------- Run | Scr Mat Mat Peak Influence 287 | . 188 287 Average Influence 119 | . 90 152 Maximum Alert Level 1 | . . 1 Low Security (%) 86 | 100 100 76 Level 1 13 | . . 23 Level 2 . | . . . Level 3 . | . . . Level 4 . | . . . Level 5 . | . . . High Security . | . . . Max Security . | . . . Squads Dispatched 2 | . 1 1 Investigation . | . . . Extermination . | . . . Reinforcement 2 | . 1 1 Assault . | . . . Garrison . | . . . Intercept . | . . . Construction Impeded . | . . . Haulers Reinforced . | . . . Stealth | -11 -10 -9 --------- Run | Scr Mat Mat Distress Signals 2 | . 1 1 Communications Jammed . | . . . Distress Signals . | . . . Times Spotted 38 | . 12 26 Peak Tracking Total 6 | . 4 6 Tactical Retreats 5 | . 1 4 Traps | -11 -10 -9 ------- Run | Scr Mat Mat Traps Triggered 1 | . 1 . Indirectly . | . . . Trap Hack Attempts . | . . . Triggered . | . . . Disarmed . | . . . Reprogrammed . | . . . Reused . | . . . Traps Extracted . | . . . Installed . | . . . Triggered . | . . . Machines | -11 -10 -9 ---------- Run | Scr Mat Mat Machines Disabled 1 | . . 1 Max in Single Turn 1 | . . 1 Machines Sabotaged . | . . . Garrisons Compromised . | . . . Overloaded Fab Kills . | . . . Fab Network Shutdowns . | . . . Hacking | -11 -10 -9 --------- Run | Scr Mat Mat Machines Accessed 6 | . 3 3 Terminals 5 | . 3 2 Fabricators . | . . . Repair Stations . | . . . Recycling Units . | . . . Scanalyzers 1 | . . 1 Garrison Access . | . . . Total Hacks 18 | . 6 12 Successful 14 | . 3 11 Failed 4 | . 3 1 Catastrophic . | . . . Database Lockouts . | . . . Manual 7 | . 2 5 Terminals 12 | . 6 6 Fabricators . | . . . Repair Stations . | . . . Recycling Units . | . . . Scanalyzers 6 | . . 6 Garrison Access . | . . . Terminal Hacks 5 | . 3 2 Level Access Points 1 | . 1 . Locate Traps 4 | . 2 2 Fabricator Hacks . | . . . Repair Station Hacks . | . . . Recycling Unit Hacks . | . . . Scanalyzer 6 | . . 6 Insert Component 3 | . . 3 Analyze 3 | . . 3 Garrison Access Hacks . | . . . Unauthorized Hacks 8 | . 2 6 Terminals 3 | . . 3 Track 1 | . . 1 Botnet 2 | . . 2 Fabricators . | . . . Repair Stations . | . . . Recycling Units . | . . . Scanalyzers . | . . . Garrison Access . | . . . Data Cores Recovered . | . . . Used . | . . . Hacking Detections 5 | . 3 2 Full Trace Events . | . . . Feedback Events . | . . . Feedback Blocked . | . . . Robot Schematics Acquired . | . . . Robots Built . | . . . Matter . | . . . Time . | . . . Total Robot Build Rating . | . . . Part Schematics Acquired 3 | . . 3 Parts Built . | . . . Matter . | . . . Time . | . . . Total Part Build Rating . | . . . Parts Repaired . | . . . Time . | . . . Parts Recycled . | . . . Recycled Matter . | . . . Retrieved Matter . | . . . Retrieved Components . | . . . Parts Scanalyzed 3 | . . 3 Part Schematics Acquired 3 | . . 3 Parts Damaged . | . . . Bothacking | -11 -10 -9 ------------ Run | Scr Mat Mat Used RIF Installer . | . . . Robots Hacked . | . . . Non-combat . | . . . Combat . | . . . Robot Hacks Applied . | . . . Relay Couplers Released . | . . . Robots Rewired . | . . . Allies Hacked . | . . . Hacks Repelled . | . . . Allies | -11 -10 -9 -------- Run | Scr Mat Mat Total Allies . | . . . Largest Group . | . . . Highest-Rated Group . | . . . Highest-Rated Ally . | . . . Total Orders . | . . . Ally Attacks . | . . . Total Damage . | . . . Kills . | . . . Allies Corrupted . | . . . Allies Melted . | . . . Intel | -11 -10 -9 ------- Run | Scr Mat Mat Robot Analysis Total . | . . . Derelict Logs Recovered . | . . . Drone Launches . | . . . Drone Recoveries . | . . . Exploration | -11 -10 -9 ------------- Run | Scr Mat Mat Turns Passed 1011 | 65 383 563 Spaces Moved 411 | 43 174 194 Core 11 | 1 . 10 Treads . | . . . Legs 294 | 42 174 78 Wheels 106 | . . 106 Hover . | . . . Flight . | . . . Fastest Speed 50 | 50 120 100 Average Speed 174 | 118 173 186 Slowest Speed 1000 | 120 180 1000 Overloaded Moves . | . . . Propulsion Burnouts . | . . . Robots Hopped . | . . . Cave-ins Triggered . | . . . Exploration Rate (%) 20 | 5 41 15 Regions Visited 2 Branch Regions . Pre-discovered Areas . | . . . Known Exits Taken 1 | . 1 . Unknown Exits Taken 1 | 1 . . Scrap Searched . | . . . Spaces Dug . | . . . Terrain Destroyed 84 | . . 84 Melee . | . . . Projectile . | . . . AOE 84 | . . 84 Actions | -11 -10 -9 --------- Run | Scr Mat Mat Total 571 | 54 217 300 Wait 33 | . 1 32 Move 409 | 42 173 194 Hop . | . . . Pick Up 19 | 6 11 2 Fast Attach 7 | 6 1 . Attach 14 | . . 14 Detach 1 | . . 1 Swap 11 | . 5 6 Drop 6 | . 6 . Fire 70 | . 19 51 Melee . | . . . Ram . | . . . Kick . | . . . Crush . | . . . Escape Stasis . | . . . Rewire 1 | . 1 . Trap . | . . . Miscellaneous . | . . . Route ------- -11/Scrapyard -10/Materials (discovered 3 exits: *Mat x3) -9/Materials History --------- Turn | Location | Event 22 | -11/Scrapyard | Discovered new exit (range 16) 66 | -11/Scrapyard | Entered Materials 306 | -10/Materials | Build established: Mutant 429 | -10/Materials | Identified exit to Materials 449 | -10/Materials | Entered another Materials area 449 | -9/Materials | Evolved 2 slots: Utility x1, Weapon x1 705 | -9/Materials | Lost 7 parts (1p2n4w) 904 | -9/Materials | Lost 3 parts (2n1w) 912 | -9/Materials | Core integrity fell below 50% 928 | -9/Materials | Core integrity fell below 20% 955 | -9/Materials | Lost 4 parts (1p3w) 1012 | -9/Materials | Destroyed by G-34 Mercenary with Small Laser Last Messages --------------- 00933_ The unstable cave ceiling collapses. 00933_ Imp. Ion Engine crushed. 00933_ S-10 Pest destroyed. 00935_ Nuclear Reactor explodes. 00935_ R-06 Scavenger collects Med. Matter Pod. 00936_ The unstable cave ceiling collapses. 00939_ R-06 Scavenger collects Wheel. 00940_ The unstable cave ceiling collapses. 00946_ Acquired 28 matter. 00950_ R-06 Scavenger collects Lgt. Ion Engine. 00952_ The unstable cave ceiling collapses. 00975_ U-05 Engineer lays Concrete. 00980_ U-05 Engineer builds a Wall. 00984_ Acquired 11 matter. 00984_ U-05 Engineer builds a Wall. 00994_ The unstable cave ceiling collapses. 00994_ U-05 Engineer destroyed. 00997_ The unstable cave ceiling collapses. 00997_ G-34 Mercenary destroyed. 01006_ R-06 Scavenger collects Lgt. Ion Engine. Map ----- +----------------------------------------------------+ | ??????????????????????????????????????????????? | | ??????????????????????????????????????????????? | | ??????????????????????????????????????????????? | | ??????????????????????????????????????????????? | | ??????????????????????????????????????????????? | | ??????????????????????????????????????????????? | | ??????????????????????????????????????????????? | | ????????????????????????????? ????????????????? | | ????????????????????????????? ????????????????? | | ????????????????????????????? ????????????????? | | ???????????????????????r????? ????????????????? | | ??????????????????????# ????? ????????????????? | | ??????????????????????# ????? ????????????????? | | ????????????????????### ##??? #???????????????? | | ?????????????????#### ??# #?? ?????????? | | ????????????????? #?# #? ?????????? | | ?????????????????? ? ? !!!?????????? | | ??????????????????? ## ## !!??????????? | | ???????????????????# # # ????????????? | | ??????????????????## # #????????????? | | ??????????????????# !% #????????????? | | ??????????????????# #????????????? | | ??????????????????# = # #????????????? | | ??????????????????# % # # #????????????? | | ??????????????????# ## # ##????????????? | | ??????????????????# # @ # #????????????? | | ??????????????????# # g #????????????? | | ??????????????????# # T #????????????? | | ??????????????????# r # #????????????? | | ??????????????????# #????????????? | | ??????????????????# ] # ###????????????? | | ?????????????????### ## #??????????????? | | ???????????????### ?# #??????????????? | | ???????????????# ###?# #??????????????? | | ???????????????# """ #???# #??????????????? | | ???????????????# """ #???# #??????????????? | | ???????????????# """ #???# #??????????????? | | ???????????????# / #???# #??????????????? | | ???????????????# / " " ##### ########???????? | | ???????????????#/ "Y" + + #???????? | | ???????????????# ^ """ # " # "" #???????? | | ???????????????#####+#####" " # """#???????? | | ??????????????????# " + S"#???????? | | ??????????????????# ########## #???????? | | ??????????????????# #????????# #???????? | | ??????????????????# #?????##?########???????? | | ??????????????????# ###### ###??????????????? | | ??????????????????# # #??????????????? | | ??????????????????# # """ #??????????????? | | ??????????????????# #[[! """ #??????????????? | +----------------------------------------------------+ Best States ------------- Heat Dissipation 28 Coolant Potential 50 Energy Generation 10 Energy Capacity 250 Matter Stores 300 Matter Capacity 300 Sight Range 16 Terrain Scan Density 10 Evasion (%) 40 Item Schematics ----------------- Hcp. Storage Unit | -9/Materials | Scanalyzed Mni. Grenade Launcher | -9/Materials | Scanalyzed Imp. Sensor Array | -9/Materials | Scanalyzed Robot Schematics ------------------ None Fabricated ------------ Nothing Alien Tech Used ----------------- None Achievements -------------- None Challenges ------------ None Game ------ Seed GhostMetafiberMapper Manual? 0 Play Time 00:09:31 Cumulative 46.5 hours Start 2019.11.27 @ 09:45:32 End 2019.11.27 @ 09:55:13 Sessions 1 Manual Loads 0 Difficulty Rogue Special Mode None Game No. 36 Rogue 36 Adventurer 0 Explorer 0 Win Type - Total 7 Types 7/0/0/0/0/0/0 Lore% 60 Gallery% 59 Achievement% 44 Wizard Run 0 Options --------- ASCII 0 Keyboard 0 Movement Vi Keybinds 0 Fullscreen 0 Font 14/SmallcapsGlow Map View 72x52 Tactical HUD 1 Map Filters NONE Filters NONE Steam 0 RUN: 32ea4994-3fb6-41f8-887f-3c06f7402512